[Event "Early-Titled-Tuesday-Blitz-May-07-2024"]
[Site "Chess.com"]
[Date "2024.05.07"]
[Round "1"]
[White "Sadykov_Ramil"]
[Black "Anu-triz"]
[Result "1/2-1/2"]
[WhiteElo "2612"]
[BlackElo "2321"]
[TimeControl "180+1"]
[EndTime "8:08:37 PDT"]
[Termination "Game drawn - insufficient material"]

1. Nf3 {[%clk 0:02:52.6]} 1... Nf6 {[%clk 0:02:58.7]} 2. c4 {[%clk 0:02:49.5]}
2... e6 {[%clk 0:02:57]} 3. g3 {[%clk 0:02:49.1]} 3... b6 {[%clk 0:02:56.2]} 4.
Bg2 {[%clk 0:02:48]} 4... Bb7 {[%clk 0:02:56.9]} 5. O-O {[%clk 0:02:48.4]} 5...
Be7 {[%clk 0:02:56.8]} 6. d3 {[%clk 0:02:34.1]} 6... O-O {[%clk 0:02:56.4]} 7.
e4 {[%clk 0:02:33.3]} 7... c5 {[%clk 0:02:56.1]} 8. e5 {[%clk 0:02:19.2]} 8...
Ne8 {[%clk 0:02:55]} 9. d4 {[%clk 0:02:18.4]} 9... cxd4 {[%clk 0:02:52]} 10.
Qxd4 {[%clk 0:02:11.7]} 10... Nc6 {[%clk 0:02:50.3]} 11. Qe4 {[%clk 0:01:57.4]}
11... d6 {[%clk 0:02:48.8]} 12. Rd1 {[%clk 0:01:50.4]} 12... Qc7 {[%clk
0:02:46.6]} 13. exd6 {[%clk 0:01:43.7]} 13... Nxd6 {[%clk 0:02:43]} 14. Qe2
{[%clk 0:01:44]} 14... Rad8 {[%clk 0:02:37.6]} 15. Nc3 {[%clk 0:01:43.3]} 15...
a6 {[%clk 0:02:33.2]} 16. b3 {[%clk 0:01:35.7]} 16... Nf5 {[%clk 0:02:33.1]} 17.
Bf4 {[%clk 0:01:23.4]} 17... Qc8 {[%clk 0:02:20.4]} 18. Rac1 {[%clk 0:00:54.8]}
18... Ncd4 {[%clk 0:02:18.2]} 19. Nxd4 {[%clk 0:00:50.1]} 19... Nxd4 {[%clk
0:02:19.1]} 20. Qe3 {[%clk 0:00:45.3]} 20... Bxg2 {[%clk 0:02:18]} 21. Kxg2
{[%clk 0:00:46.2]} 21... Bc5 {[%clk 0:02:11.1]} 22. Ne4 {[%clk 0:00:29]} 22...
Qc6 {[%clk 0:01:54.6]} 23. f3 {[%clk 0:00:28]} 23... e5 {[%clk 0:01:47.5]} 24.
Bxe5 {[%clk 0:00:14.2]} 24... Nf5 {[%clk 0:01:34.1]} 25. Qg5 {[%clk 0:00:14.3]}
25... Rxd1 {[%clk 0:01:26.4]} 26. Rxd1 {[%clk 0:00:12.5]} 26... Ne3+ {[%clk
0:01:26.4]} 27. Kh3 {[%clk 0:00:12.6]} 27... f6 {[%clk 0:01:26.6]} 28. Bxf6
{[%clk 0:00:09]} 28... Qe6+ {[%clk 0:01:23.5]} 29. g4 {[%clk 0:00:08.1]} 29...
Rxf6 {[%clk 0:01:20.9]} 30. Nxf6+ {[%clk 0:00:05.9]} 30... Qxf6 {[%clk
0:01:19.7]} 31. Rd8+ {[%clk 0:00:05.1]} 31... Kf7 {[%clk 0:01:11.6]} 32. Rd7+
{[%clk 0:00:04.9]} 32... Ke6 {[%clk 0:01:02.9]} 33. Qxf6+ {[%clk 0:00:03.5]}
33... Kxf6 {[%clk 0:01:00.1]} 34. Rb7 {[%clk 0:00:03.3]} 34... a5 {[%clk
0:00:59.1]} 35. a3 {[%clk 0:00:03.4]} 35... Nc2 {[%clk 0:00:51.4]} 36. b4 {[%clk
0:00:03.2]} 36... axb4 {[%clk 0:00:49.7]} 37. axb4 {[%clk 0:00:04.1]} 37... Nxb4
{[%clk 0:00:50.3]} 38. f4 {[%clk 0:00:04.7]} 38... h6 {[%clk 0:00:46.4]} 39. Kg3
{[%clk 0:00:03.9]} 39... Nd3 {[%clk 0:00:43.3]} 40. h4 {[%clk 0:00:04.2]} 40...
Nb2 {[%clk 0:00:39.8]} 41. g5+ {[%clk 0:00:04.6]} 41... hxg5 {[%clk 0:00:39.6]}
42. hxg5+ {[%clk 0:00:05.5]} 42... Kf5 {[%clk 0:00:32.9]} 43. Rxg7 {[%clk
0:00:05.5]} 43... Nxc4 {[%clk 0:00:31.5]} 44. Rf7+ {[%clk 0:00:05]} 44... Ke6
{[%clk 0:00:21]} 45. g6 {[%clk 0:00:03.1]} 45... Nd6 {[%clk 0:00:20.6]} 46. Rf8
{[%clk 0:00:01.6]} 46... Ne4+ {[%clk 0:00:17.9]} 47. Kf3 {[%clk 0:00:01.8]}
47... Bxf8 {[%clk 0:00:15.8]} 48. Kxe4 {[%clk 0:00:02.2]} 48... Kf6 {[%clk
0:00:15.4]} 49. f5 {[%clk 0:00:02.5]} 49... Bc5 {[%clk 0:00:15.1]} 50. Kf4
{[%clk 0:00:02.8]} 50... b5 {[%clk 0:00:15.5]} 51. Ke4 {[%clk 0:00:03.2]} 51...
b4 {[%clk 0:00:15]} 52. Kd3 {[%clk 0:00:02.6]} 52... Bf8 {[%clk 0:00:13.6]} 53.
Ke4 {[%clk 0:00:03.1]} 53... Be7 {[%clk 0:00:12.5]} 54. Kd3 {[%clk 0:00:02.1]}
54... Bd6 {[%clk 0:00:13.2]} 55. Kc4 {[%clk 0:00:01.8]} 55... Bf8 {[%clk
0:00:13.3]} 56. Kb3 {[%clk 0:00:01.3]} 56... Kg7 {[%clk 0:00:11.5]} 57. Kc4
{[%clk 0:00:01.8]} 57... Be7 {[%clk 0:00:11.1]} 58. Kb3 {[%clk 0:00:02.5]} 58...
Kf6 {[%clk 0:00:11.3]} 59. Kc4 {[%clk 0:00:03]} 59... Bf8 {[%clk 0:00:10.2]} 60.
Kb3 {[%clk 0:00:03.1]} 60... Kxf5 {[%clk 0:00:10.8]} 61. g7 {[%clk 0:00:02.7]}
61... Bxg7 {[%clk 0:00:11]} 62. Kxb4 {[%clk 0:00:03.6]} 1/2-1/2

[Event "Early-Titled-Tuesday-Blitz-May-07-2024"]
[Site "Chess.com"]
[Date "2024.05.07"]
[Round "1"]
[White "Ati1517"]
[Black "IriBu"]
[Result "1-0"]
[WhiteElo "2277"]
[BlackElo "2582"]
[TimeControl "180+1"]
[EndTime "8:08:37 PDT"]
[Termination "Ati1517 won on time"]

1. e4 {[%clk 0:02:51.4]} 1... d6 {[%clk 0:02:58.4]} 2. Nf3 {[%clk 0:02:51.8]}
2... Nf6 {[%clk 0:02:58.4]} 3. d4 {[%clk 0:02:52.2]} 3... Nbd7 {[%clk 0:02:57]}
4. Nc3 {[%clk 0:02:50.7]} 4... e5 {[%clk 0:02:57]} 5. dxe5 {[%clk 0:02:48.8]}
5... dxe5 {[%clk 0:02:54.7]} 6. Bg5 {[%clk 0:02:49.2]} 6... c6 {[%clk
0:02:53.7]} 7. Bc4 {[%clk 0:02:47.8]} 7... h6 {[%clk 0:02:50.9]} 8. Bxf6 {[%clk
0:02:46.1]} 8... Qxf6 {[%clk 0:02:49.7]} 9. Qd3 {[%clk 0:02:45.3]} 9... Bc5
{[%clk 0:02:47.5]} 10. O-O {[%clk 0:02:41.8]} 10... O-O {[%clk 0:02:47.2]} 11.
a4 {[%clk 0:02:36.8]} 11... a5 {[%clk 0:02:46.6]} 12. Rad1 {[%clk 0:02:30.7]}
12... Re8 {[%clk 0:02:46.2]} 13. Ne2 {[%clk 0:02:30]} 13... Nf8 {[%clk
0:02:44.6]} 14. Ng3 {[%clk 0:02:29.4]} 14... Ng6 {[%clk 0:02:41]} 15. Nh5 {[%clk
0:02:23.5]} 15... Qe7 {[%clk 0:02:38.9]} 16. Qb3 {[%clk 0:02:13.8]} 16... Bg4
{[%clk 0:02:36.5]} 17. Ng3 {[%clk 0:02:11.5]} 17... Rab8 {[%clk 0:02:31]} 18. h3
{[%clk 0:02:10.7]} 18... Bc8 {[%clk 0:02:21.1]} 19. Nf5 {[%clk 0:02:05.5]} 19...
Qf6 {[%clk 0:02:16]} 20. Ng3 {[%clk 0:01:52.9]} 20... Nf4 {[%clk 0:02:15.5]} 21.
Kh2 {[%clk 0:01:51.6]} 21... g5 {[%clk 0:02:13.6]} 22. Ne1 {[%clk 0:01:42.3]}
22... h5 {[%clk 0:02:09.3]} 23. Nd3 {[%clk 0:01:41.4]} 23... Bf8 {[%clk
0:01:48.1]} 24. Nxf4 {[%clk 0:01:40.1]} 24... exf4 {[%clk 0:01:45]} 25. Nxh5
{[%clk 0:01:38.7]} 25... Qg6 {[%clk 0:01:44]} 26. g4 {[%clk 0:01:26.3]} 26...
fxg3+ {[%clk 0:01:37.8]} 27. fxg3 {[%clk 0:01:25.9]} 27... Re6 {[%clk
0:01:33.2]} 28. Bxe6 {[%clk 0:01:23.1]} 28... Bxe6 {[%clk 0:01:33]} 29. Qf3
{[%clk 0:01:20.5]} 29... Be7 {[%clk 0:01:12.7]} 30. g4 {[%clk 0:01:20.1]} 30...
Rf8 {[%clk 0:01:02.6]} 31. Qc3 {[%clk 0:01:18.4]} 31... f6 {[%clk 0:00:57.5]}
32. Qe3 {[%clk 0:01:11.3]} 32... Bc4 {[%clk 0:00:42.6]} 33. Rf2 {[%clk
0:01:04.8]} 33... b6 {[%clk 0:00:40.3]} 34. Rd7 {[%clk 0:00:44.3]} 34... Bc5
{[%clk 0:00:38.4]} 35. Qc3 {[%clk 0:00:43.5]} 35... Bxf2 {[%clk 0:00:22.7]} 36.
Rg7+ {[%clk 0:00:41.9]} 36... Qxg7 {[%clk 0:00:22.6]} 37. Nxg7 {[%clk
0:00:42.2]} 37... Kxg7 {[%clk 0:00:18.7]} 38. Qxc4 {[%clk 0:00:42.4]} 38... Bc5
{[%clk 0:00:18.1]} 39. c3 {[%clk 0:00:42.7]} 39... Rd8 {[%clk 0:00:16.4]} 40. b4
{[%clk 0:00:42.9]} 40... Be3 {[%clk 0:00:13.4]} 41. Qxc6 {[%clk 0:00:39.1]}
41... Bf4+ {[%clk 0:00:13.3]} 42. Kg2 {[%clk 0:00:39.1]} 42... Rd2+ {[%clk
0:00:13]} 43. Kf3 {[%clk 0:00:39.2]} 43... Rd3+ {[%clk 0:00:12.2]} 44. Ke2
{[%clk 0:00:39.4]} 44... Re3+ {[%clk 0:00:10.2]} 45. Kf2 {[%clk 0:00:38.2]}
45... Rxh3 {[%clk 0:00:09.5]} 46. Qxb6 {[%clk 0:00:35.4]} 46... axb4 {[%clk
0:00:06.1]} 47. cxb4 {[%clk 0:00:35.2]} 47... Rh2+ {[%clk 0:00:05.8]} 48. Ke1
{[%clk 0:00:33.2]} 48... Rh1+ {[%clk 0:00:05.7]} 49. Ke2 {[%clk 0:00:33.3]}
49... Rh2+ {[%clk 0:00:05.9]} 50. Kd3 {[%clk 0:00:33.2]} 50... Rd2+ {[%clk
0:00:06.2]} 51. Kc4 {[%clk 0:00:32.9]} 51... Rc2+ {[%clk 0:00:06.6]} 52. Kd5
{[%clk 0:00:33.1]} 52... Rg2 {[%clk 0:00:06.2]} 53. Qb7+ {[%clk 0:00:31.5]}
53... Kg6 {[%clk 0:00:05]} 54. Qd7 {[%clk 0:00:31.6]} 54... Be5 {[%clk
0:00:04.7]} 55. Qf5+ {[%clk 0:00:28]} 55... Kg7 {[%clk 0:00:04.6]} 56. a5 {[%clk
0:00:27.3]} 56... Rd2+ {[%clk 0:00:04]} 57. Kc6 {[%clk 0:00:27.5]} 57... Rc2+
{[%clk 0:00:02.7]} 58. Kb5 {[%clk 0:00:26.7]} 58... Rc7 {[%clk 0:00:01.7]} 59.
a6 {[%clk 0:00:26.8]} 59... Bd4 {[%clk 0:00:02.1]} 60. Qd5 {[%clk 0:00:24.7]}
60... Be3 {[%clk 0:00:01.8]} 61. Ka5 {[%clk 0:00:23.3]} 61... Rc1 {[%clk
0:00:01.1]} 62. b5 {[%clk 0:00:20.4]} 62... Ra1+ {[%clk 0:00:00.6]} 63. Kb4
{[%clk 0:00:20.7]} 63... Rb1+ {[%clk 0:00:00.7]} 64. Ka4 {[%clk 0:00:21.1]}
64... Ra1+ {[%clk 0:00:01.1]} 65. Kb3 {[%clk 0:00:21.4]} 65... Rb1+ {[%clk
0:00:01.3]} 66. Ka2 {[%clk 0:00:21.8]} 66... Rb4 {[%clk 0:00:00.2]} 67. a7
{[%clk 0:00:21.9]} 67... Ra4+ {[%clk 0:00:00.1]} 68. Kb3 {[%clk 0:00:21.5]}
68... Rxa7 {[%clk 0:00:00.8]} 69. Qc6 {[%clk 0:00:19.3]} 69... Ra1 {[%clk
0:00:00.5]} 70. Kb2 {[%clk 0:00:17.6]} 70... Ra4 {[%clk 0:00:00.1]} 71. Qd7+
{[%clk 0:00:15]} 1-0

[Event "Early-Titled-Tuesday-Blitz-May-07-2024"]
[Site "Chess.com"]
[Date "2024.05.07"]
[Round "1"]
[White "ViralduS"]
[Black "Chessdude1987"]
[Result "1/2-1/2"]
[WhiteElo "2651"]
[BlackElo "2368"]
[TimeControl "180+1"]
[EndTime "8:09:01 PDT"]
[Termination "Game drawn - insufficient material"]

1. e4 {[%clk 0:02:58.6]} 1... e6 {[%clk 0:03:00.1]} 2. d4 {[%clk 0:02:56.6]}
2... d5 {[%clk 0:03:00.7]} 3. e5 {[%clk 0:02:53.5]} 3... c5 {[%clk 0:03:00.5]}
4. c3 {[%clk 0:02:51.5]} 4... Nc6 {[%clk 0:03:00.7]} 5. Nf3 {[%clk 0:02:48]}
5... Qb6 {[%clk 0:03:01.1]} 6. Bd3 {[%clk 0:02:44.4]} 6... Nh6 {[%clk
0:02:58.3]} 7. O-O {[%clk 0:02:31.8]} 7... cxd4 {[%clk 0:02:58.4]} 8. a3 {[%clk
0:02:12.6]} 8... Nf5 {[%clk 0:02:58.2]} 9. Bxf5 {[%clk 0:02:04.5]} 9... exf5
{[%clk 0:02:58.1]} 10. cxd4 {[%clk 0:01:59.4]} 10... Be6 {[%clk 0:02:58.2]} 11.
Nc3 {[%clk 0:01:57]} 11... h6 {[%clk 0:02:57.4]} 12. h4 {[%clk 0:01:48.7]} 12...
Be7 {[%clk 0:02:57.5]} 13. b4 {[%clk 0:01:40.2]} 13... O-O-O {[%clk 0:02:51.3]}
14. Na4 {[%clk 0:01:25.9]} 14... Qb5 {[%clk 0:02:41.8]} 15. Nc5 {[%clk 0:01:25]}
15... g5 {[%clk 0:02:09.3]} 16. Bd2 {[%clk 0:01:14.6]} 16... Bxc5 {[%clk
0:01:54.1]} 17. dxc5 {[%clk 0:01:10.6]} 17... g4 {[%clk 0:01:52.7]} 18. Ne1
{[%clk 0:01:01.1]} 18... Nxe5 {[%clk 0:01:30.4]} 19. Bf4 {[%clk 0:00:59.1]}
19... Ng6 {[%clk 0:01:23.9]} 20. Nd3 {[%clk 0:00:56.1]} 20... d4 {[%clk
0:01:20.8]} 21. a4 {[%clk 0:00:50.4]} 21... Qc4 {[%clk 0:01:16.8]} 22. c6 {[%clk
0:00:37.6]} 22... Nxf4 {[%clk 0:01:08]} 23. Nxf4 {[%clk 0:00:33.7]} 23... d3
{[%clk 0:01:05.6]} 24. g3 {[%clk 0:00:29.9]} 24... d2 {[%clk 0:00:52.1]} 25.
cxb7+ {[%clk 0:00:29.4]} 25... Kxb7 {[%clk 0:00:51.6]} 26. Ra3 {[%clk
0:00:19.6]} 26... Rd4 {[%clk 0:00:40.9]} 27. Re3 {[%clk 0:00:17.5]} 27... Rxf4
{[%clk 0:00:32.3]} 28. gxf4 {[%clk 0:00:17.2]} 28... Rd8 {[%clk 0:00:32.8]} 29.
Re2 {[%clk 0:00:09.6]} 29... Qxf4 {[%clk 0:00:31.8]} 30. Re3 {[%clk 0:00:08.1]}
30... Bc4 {[%clk 0:00:28.3]} 31. Rc3 {[%clk 0:00:04.7]} 31... Bxf1 {[%clk
0:00:27.5]} 32. Kxf1 {[%clk 0:00:05.6]} 32... Qh2 {[%clk 0:00:21.5]} 33. Ke2
{[%clk 0:00:04.1]} 33... g3 {[%clk 0:00:15.9]} 34. Rxg3 {[%clk 0:00:03.9]} 34...
Qxh4 {[%clk 0:00:13.3]} 35. Re3 {[%clk 0:00:02.3]} 35... Qg4+ {[%clk 0:00:12.8]}
36. f3 {[%clk 0:00:02.6]} 36... Qc4+ {[%clk 0:00:09.7]} 37. Kf2 {[%clk
0:00:02.6]} 37... f4 {[%clk 0:00:09.7]} 38. Re4 {[%clk 0:00:02.7]} 38... Qc1
{[%clk 0:00:07.3]} 39. Ke2 {[%clk 0:00:02.5]} 39... a6 {[%clk 0:00:04.3]} 40.
Rxf4 {[%clk 0:00:01.6]} 40... Qxd1+ {[%clk 0:00:03.1]} 41. Kxd1 {[%clk
0:00:01.7]} 41... Rd7 {[%clk 0:00:03.1]} 42. Rf6 {[%clk 0:00:02.1]} 42... h5
{[%clk 0:00:02.7]} 43. Rh6 {[%clk 0:00:02.4]} 43... Rd4 {[%clk 0:00:02.4]} 44.
Rxh5 {[%clk 0:00:02.8]} 44... Rxb4 {[%clk 0:00:02.5]} 45. Rf5 {[%clk 0:00:03.2]}
45... Rxa4 {[%clk 0:00:02.4]} 46. Kxd2 {[%clk 0:00:03.6]} 46... Rb4 {[%clk
0:00:01.8]} 47. Rxf7+ {[%clk 0:00:03.9]} 47... Kb6 {[%clk 0:00:02.2]} 48. f4
{[%clk 0:00:04.5]} 48... Kc6 {[%clk 0:00:02.2]} 49. f5 {[%clk 0:00:04.9]} 49...
Kd6 {[%clk 0:00:02.4]} 50. Rf8 {[%clk 0:00:05.3]} 50... Ke7 {[%clk 0:00:02.1]}
51. Rc8 {[%clk 0:00:04.6]} 51... Rb5 {[%clk 0:00:02]} 52. Rc7+ {[%clk
0:00:04.2]} 52... Kf6 {[%clk 0:00:01.9]} 53. Rc6+ {[%clk 0:00:04.4]} 53... Kxf5
{[%clk 0:00:02.1]} 54. Rxa6 {[%clk 0:00:05.3]} 54... Rd5+ {[%clk 0:00:02.1]} 55.
Kc3 {[%clk 0:00:05.8]} 55... Re5 {[%clk 0:00:02.4]} 56. Kd4 {[%clk 0:00:06.3]}
56... Re4+ {[%clk 0:00:02.7]} 57. Kd3 {[%clk 0:00:06.9]} 57... Re5 {[%clk
0:00:02.9]} 58. Ra8 {[%clk 0:00:07.5]} 58... Re6 {[%clk 0:00:02.9]} 59. Kd4
{[%clk 0:00:08]} 59... Re7 {[%clk 0:00:01.9]} 60. Rd8 {[%clk 0:00:07.5]} 60...
Re6 {[%clk 0:00:01.8]} 61. Kd5 {[%clk 0:00:07.9]} 61... Re7 {[%clk 0:00:01.9]}
62. Kd6 {[%clk 0:00:08.2]} 62... Re1 {[%clk 0:00:01.9]} 63. Rf8+ {[%clk
0:00:08.2]} 63... Kg6 {[%clk 0:00:02]} 64. Kd5 {[%clk 0:00:08.6]} 64... Rd1+
{[%clk 0:00:02.1]} 65. Ke4 {[%clk 0:00:08.2]} 65... Re1+ {[%clk 0:00:02.5]} 66.
Kd3 {[%clk 0:00:08.8]} 66... Rd1+ {[%clk 0:00:02.8]} 67. Ke2 {[%clk 0:00:09.1]}
67... Rd5 {[%clk 0:00:03]} 68. Rb8 {[%clk 0:00:09.3]} 68... Rd7 {[%clk
0:00:02.9]} 69. Kf2 {[%clk 0:00:09.8]} 69... Rf7+ {[%clk 0:00:03]} 70. Kg3
{[%clk 0:00:10.3]} 70... Ra7 {[%clk 0:00:02.9]} 71. Rb4 {[%clk 0:00:09.4]} 71...
Ra5 {[%clk 0:00:02.9]} 72. Kg4 {[%clk 0:00:10]} 72... Kf6 {[%clk 0:00:02.9]} 73.
Kf4 {[%clk 0:00:09.7]} 73... Ke6 {[%clk 0:00:03]} 74. Rb6+ {[%clk 0:00:10.4]}
74... Kd7 {[%clk 0:00:03]} 75. Rh6 {[%clk 0:00:09]} 75... Ke7 {[%clk 0:00:03]}
76. Ke4 {[%clk 0:00:08.8]} 76... Kd7 {[%clk 0:00:02.9]} 77. Rb6 {[%clk
0:00:09.1]} 77... Ke7 {[%clk 0:00:02.7]} 78. Kd4 {[%clk 0:00:09.4]} 78... Kd7
{[%clk 0:00:02.8]} 79. Kc4 {[%clk 0:00:09.9]} 79... Ke7 {[%clk 0:00:03]} 80. Kb4
{[%clk 0:00:10.5]} 80... Rh5 {[%clk 0:00:03]} 81. Rb7+ {[%clk 0:00:11.1]} 81...
Kd6 {[%clk 0:00:03]} 82. Rb5 {[%clk 0:00:12]} 82... Rxb5+ {[%clk 0:00:00.9]} 83.
Kxb5 {[%clk 0:00:12.1]} 1/2-1/2

[Event "Early-Titled-Tuesday-Blitz-May-07-2024"]
[Site "Chess.com"]
[Date "2024.05.07"]
[Round "1"]
[White "FollowRivers"]
[Black "sofaceindisguise"]
[Result "1/2-1/2"]
[WhiteElo "2437"]
[BlackElo "2738"]
[TimeControl "180+1"]
[EndTime "8:09:03 PDT"]
[Termination "Game drawn - insufficient material"]

1. Nf3 {[%clk 0:03:00.9]} 1... d5 {[%clk 0:02:33.9]} 2. b3 {[%clk 0:03:00]} 2...
e6 {[%clk 0:02:34]} 3. Bb2 {[%clk 0:02:59.2]} 3... Nf6 {[%clk 0:02:34.5]} 4. e3
{[%clk 0:02:59.5]} 4... Be7 {[%clk 0:02:34.8]} 5. Be2 {[%clk 0:02:59.8]} 5...
O-O {[%clk 0:02:35.4]} 6. O-O {[%clk 0:03:00.5]} 6... c5 {[%clk 0:02:35.7]} 7.
c4 {[%clk 0:03:00.2]} 7... Nc6 {[%clk 0:02:35.4]} 8. d4 {[%clk 0:03:00.9]} 8...
cxd4 {[%clk 0:02:31.3]} 9. Nxd4 {[%clk 0:03:00.6]} 9... Bd7 {[%clk 0:02:27.1]}
10. Nc3 {[%clk 0:02:57.2]} 10... dxc4 {[%clk 0:02:24.6]} 11. Bxc4 {[%clk
0:02:53.1]} 11... Rc8 {[%clk 0:02:23.9]} 12. Rc1 {[%clk 0:02:50.6]} 12... Qa5
{[%clk 0:02:16.9]} 13. Nxc6 {[%clk 0:01:57.5]} 13... Bxc6 {[%clk 0:02:16.1]} 14.
Qe2 {[%clk 0:01:58.3]} 14... Rfd8 {[%clk 0:02:14.9]} 15. Rfd1 {[%clk 0:01:57.9]}
15... Qg5 {[%clk 0:02:14.2]} 16. f3 {[%clk 0:01:48.8]} 16... Bc5 {[%clk
0:02:10.1]} 17. Re1 {[%clk 0:01:49]} 17... a6 {[%clk 0:02:05.6]} 18. Kh1 {[%clk
0:01:46.5]} 18... Nh5 {[%clk 0:01:55.3]} 19. Rcd1 {[%clk 0:01:30.7]} 19... Qh4
{[%clk 0:01:53.3]} 20. Kg1 {[%clk 0:01:30.2]} 20... Nf4 {[%clk 0:01:48.4]} 21.
Qf2 {[%clk 0:01:27.2]} 21... Qg5 {[%clk 0:01:47.9]} 22. Qg3 {[%clk 0:01:09.4]}
22... Qxg3 {[%clk 0:01:30.3]} 23. hxg3 {[%clk 0:01:10.3]} 23... Ng6 {[%clk
0:01:25.4]} 24. Kf2 {[%clk 0:01:06.1]} 24... b5 {[%clk 0:01:22.8]} 25. Be2
{[%clk 0:00:54.4]} 25... Ne7 {[%clk 0:01:10.7]} 26. Rxd8+ {[%clk 0:00:49.6]}
26... Rxd8 {[%clk 0:01:10.7]} 27. Rd1 {[%clk 0:00:50.5]} 27... Rc8 {[%clk
0:01:04.1]} 28. g4 {[%clk 0:00:39.9]} 28... b4 {[%clk 0:00:47.4]} 29. Nb1 {[%clk
0:00:40.1]} 29... Nd5 {[%clk 0:00:44.7]} 30. Bd4 {[%clk 0:00:40.5]} 30... Bb7
{[%clk 0:00:36.8]} 31. Bc4 {[%clk 0:00:27.6]} 31... a5 {[%clk 0:00:21.4]} 32.
Bxc5 {[%clk 0:00:26.1]} 32... Rxc5 {[%clk 0:00:14.3]} 33. Bxd5 {[%clk
0:00:26.2]} 33... exd5 {[%clk 0:00:12.7]} 34. Rd2 {[%clk 0:00:27]} 34... Kf8
{[%clk 0:00:11.8]} 35. Rb2 {[%clk 0:00:24]} 35... Ke7 {[%clk 0:00:12]} 36. Nd2
{[%clk 0:00:24.3]} 36... Ke6 {[%clk 0:00:10.7]} 37. Nf1 {[%clk 0:00:22.4]} 37...
Ba6 {[%clk 0:00:11.1]} 38. Ng3 {[%clk 0:00:19.5]} 38... g6 {[%clk 0:00:11]} 39.
Rd2 {[%clk 0:00:20.1]} 39... Rc1 {[%clk 0:00:09.9]} 40. Ne2 {[%clk 0:00:17]}
40... Kd6 {[%clk 0:00:09.1]} 41. Nd4 {[%clk 0:00:16.7]} 41... Ra1 {[%clk
0:00:07]} 42. g5 {[%clk 0:00:17.1]} 42... Bc8 {[%clk 0:00:06.1]} 43. Ne2 {[%clk
0:00:16.3]} 43... Ke6 {[%clk 0:00:05]} 44. Nf4+ {[%clk 0:00:16]} 44... Ke7
{[%clk 0:00:04.8]} 45. Nxd5+ {[%clk 0:00:15.8]} 45... Ke6 {[%clk 0:00:04.5]} 46.
Nb6 {[%clk 0:00:15.5]} 46... Bb7 {[%clk 0:00:04.1]} 47. Nc4 {[%clk 0:00:15.8]}
47... a4 {[%clk 0:00:02.9]} 48. bxa4 {[%clk 0:00:15.8]} 48... Bd5 {[%clk
0:00:03.2]} 49. Nb6 {[%clk 0:00:12.4]} 49... Rxa2 {[%clk 0:00:02.7]} 50. Rxa2
{[%clk 0:00:08.4]} 50... Bxa2 {[%clk 0:00:02.7]} 51. a5 {[%clk 0:00:09.3]} 51...
b3 {[%clk 0:00:01.8]} 52. Na4 {[%clk 0:00:09.9]} 52... Kd6 {[%clk 0:00:01.9]}
53. Ke2 {[%clk 0:00:09.3]} 53... Kc6 {[%clk 0:00:02.3]} 54. Kd2 {[%clk 0:00:09]}
54... Kb5 {[%clk 0:00:02.3]} 55. Nb2 {[%clk 0:00:07.5]} 55... Kxa5 {[%clk
0:00:02.8]} 56. Kc3 {[%clk 0:00:08.4]} 56... Kb5 {[%clk 0:00:03.3]} 57. Nd3
{[%clk 0:00:04]} 57... Bb1 {[%clk 0:00:02.9]} 58. Ne5 {[%clk 0:00:03.6]} 58...
Ka4 {[%clk 0:00:02.4]} 59. Kb2 {[%clk 0:00:02.5]} 59... Kb4 {[%clk 0:00:02.6]}
60. Nxf7 {[%clk 0:00:02.6]} 60... Bf5 {[%clk 0:00:02.1]} 61. Nd6 {[%clk
0:00:02.5]} 61... Be6 {[%clk 0:00:02.7]} 62. Ne8 {[%clk 0:00:02.8]} 62... Kc4
{[%clk 0:00:01.4]} 63. Nf6 {[%clk 0:00:03.4]} 63... Kd3 {[%clk 0:00:01.4]} 64.
Nxh7 {[%clk 0:00:03.5]} 64... Kxe3 {[%clk 0:00:01.9]} 65. Nf8 {[%clk 0:00:04.3]}
65... Bf7 {[%clk 0:00:02.2]} 66. Nxg6 {[%clk 0:00:03.2]} 66... Bxg6 {[%clk
0:00:03.1]} 67. Kxb3 {[%clk 0:00:03.3]} 67... Kf4 {[%clk 0:00:03.8]} 68. Kc3
{[%clk 0:00:03.6]} 68... Kxg5 {[%clk 0:00:04.7]} 69. Kd4 {[%clk 0:00:04.5]}
69... Kf4 {[%clk 0:00:05.6]} 70. Kc3 {[%clk 0:00:04.4]} 70... Bf5 {[%clk
0:00:06]} 71. Kd2 {[%clk 0:00:04.7]} 71... Kg3 {[%clk 0:00:06.5]} 72. Ke1 {[%clk
0:00:05.6]} 72... Kxg2 {[%clk 0:00:05.9]} 73. f4 {[%clk 0:00:06.5]} 73... Kg3
{[%clk 0:00:06.2]} 74. Kd2 {[%clk 0:00:07.4]} 74... Kxf4 {[%clk 0:00:05.5]}
1/2-1/2